Cogmind - Beta 16.1 @@@ ROGUE MODE // 2026.02.16 @ 11:07:28 Player: beans Result: Destroyed by P-70 Sage with High-powered Shock Rifle Performance ------------- Evolutions (5) 2500 Regions Visited (4) 800 Robots Destroyed (29) 145 Value Destroyed (1040) 1040 Prototype IDs (10) 200 Alien Tech Used (0) 0 Bonus (783) 783 TOTAL SCORE: 5468 Bonus ------- Registered with UFD 300 Met Optimus in HQ 500 Friendly Fire -17 Cogmind --------- Core Integrity 0/1000 Matter 300/300 Energy 100/100 System Corruption 6% Temperature Cool (0) Movement Walking (120) Location -5/Factory Parts ------- > --- POWER (2) -------- (None) > --- PROPULSION (4) --- Carbon-fiber Leg Carbon-fiber Leg > --- UTILITY (7) ------ Advanced Cooling System > --- WEAPON (4) ------- Lance > --- INVENTORY (5) ---- Siege Cannon Replica Faulty Tiamat Missile Launcher CPS Tube (2) Peak State ------------ > --- POWER ------------ Angular Momentum Engine > --- PROPULSION ------- Flexi-carbon Leg > --- UTILITY ---------- Improved Heat Sink Advanced Cooling System Small Storage Unit > --- WEAPON ----------- Gatling Laser Heavy Phase Cannon Mass Driver > --- INVENTORY -------- Relay Coupler [Proto] Siege Cannon Replica CPS Tube CPS Tube CPS Tube CPS Tube [Rating: 39] Favorites ----------- Power Improved Deuterium Engine Engine Improved Deuterium Engine Propulsion Aluminum Leg Leg Aluminum Leg Flight Unit VTOL Module Utility Small Storage Unit Device Advanced Cooling System Storage Small Storage Unit Protection Reactive Plating Weapon Assault Rifle Energy Gun Gatling Laser Energy Cannon Heavy Phase Cannon Ballistic Gun Assault Rifle Ballistic Cannon Mass Driver Launcher Heavy Rocket Launcher Special Weapon Improved Remote Datajack Piercing Weapon Lance Build | -11 -10 -10 -7 -5 ------- Run | Yrd Mat Sub Scr Fac Slots Evolved 10 | . . . . 10 Power 1 | . . . . 1 Propulsion 2 | . . . . 2 Utility 5 | . . . . 5 Weapon 2 | . . . . 2 Parts Attached 40 | 5 1 . 12 22 Power 4 | 1 . . 1 2 Engine 4 | 1 . . 1 2 Core . | . . . . . Reactor . | . . . . . Propulsion 10 | 2 . . 3 5 Treads . | . . . . . Leg 8 | 2 . . 3 3 Wheel . | . . . . . Hover . | . . . . . Flight 2 | . . . . 2 Utility 6 | 1 1 . 1 3 Device 3 | . . . . 3 Storage 1 | 1 . . . . Processor . | . . . . . Hackware . | . . . . . Protection 2 | . 1 . 1 . Artifact . | . . . . . Weapon 20 | 1 . . 7 12 Energy Gun 1 | . . . . 1 Energy Cannon 1 | . . . . 1 Ballistic Gun 10 | 1 . . 4 5 Ballistic Cannon 2 | . . . . 2 Launcher 2 | . . . 1 1 Special Weapon 3 | . . . 2 1 Impact Weapon . | . . . . . Slashing Weapon . | . . . . . Piercing Weapon 1 | . . . . 1 Special Melee Weapon . | . . . . . Unidentified Prototypes 2 | . . . 1 1 Parts Lost 20 | . . 1 4 15 Power 4 | . . 1 . 3 Propulsion 4 | . . . . 4 Utility 4 | . . . 1 3 Weapon 8 | . . . 3 5 Highest Loss Streak 4 | . . 1 2 4 To Critical Strikes . | . . . . . Average Backups 5 | . . 1 6 5 Power . | . . . . . Propulsion . | . . . . . Utility 1 | . . . 2 . Weapon 1 | . . 1 1 1 Tool/Special . | . . . . . Unused Backups 6 | . . . 3 3 Power . | . . . . . Propulsion . | . . . . . Utility 3 | . . . 2 1 Weapon 1 | . . . 1 . Tool/Special 2 | . . . . 2 Average Slot Usage (%) 72 | . 81 75 89 33 Engine 6 | . 14 4 7 1 Leg 21 | . 28 28 27 5 Device 1 | . . . . 5 Storage 11 | . 14 14 14 3 Protection 9 | . 10 14 13 . Ballistic Gun 18 | . 14 14 24 7 Peak Build Rating 39 | 5 6 6 23 39 Average Rating 17 | 3 5 5 17 25 On Entrance 7 | . 5 6 5 22 Avg Prop Armor Cover (%) . | . . . . . Naked Turns . | . . . . . Heaviest Build 44 | 10 13 13 34 44 Greatest Support 40 | 20 20 20 40 32 Greatest Overweight (x) 12 | . . . 2 12 Average Overweight (x) . | . . . . . Largest Inventory Capacity 8 | 8 8 8 8 8 Average Capacity 7 | 6 8 8 8 7 Most Carried 8 | 3 1 1 8 8 Average Carried 6 | . . 1 7 7 Final Capacity 8 | 8 8 8 8 5 Final Carried 8 | . 1 1 8 5 Class Distribution -------------------- 67% | Mutant 20% | Derelict-Mutant 5% | Tank 4% | Scavenger-Tank Dominant Class ---------------- Mutant | -10/Materials Mutant | -10/Subcaves Mutant | -7/Scraptown Mutant | -5/Factory Resources | -11 -10 -10 -7 -5 ----------- Run | Yrd Mat Sub Scr Fac Matter Collected 1225 | 153 30 96 418 528 Remotely . | . . . . . Salvage Created 1460 | . 26 . 314 1120 Parts 70 | . 3 . 20 47 Haulers Intercepted . | . . . . . Recyclers Shooed 3 | . . . . 3 Parts Field Recycled . | . . . . . Retrieved Matter . | . . . . . Parts Self-Destructed 4 | . . 4 . . Prevented . | . . . . . Parts Restored . | . . . . . Kills | -11 -10 -10 -7 -5 ------- Run | Yrd Mat Sub Scr Fac Combat Hostiles Destroyed 22 | . . . 5 17 Melee 3 | . . . . 3 Guns 11 | . . . 1 10 Cannons 4 | . . . . 4 AOE 4 | . . . 4 . Classes Destroyed 12 | . 1 . 3 8 Worker 1 | . . . . 1 Builder 2 | . 1 . . 1 Recycler 3 | . . . . 3 Turret 1 | . . . 1 . Swarmer 9 | . . . . 9 Grunt 3 | . . . . 3 Duelist 1 | . . . . 1 Sentry 1 | . . . . 1 Hunter 1 | . . . . 1 Programmer 2 | . . . . 2 Guru 1 | . . . 1 . Scrapper 4 | . . . 4 . Best Kill Streak 5 | . 1 . 4 5 Combat Bots Only 4 | . . . 4 4 Max Kills in Single Turn 2 | . 1 . 2 1 Gunslinging . | . . . . . Exploded 2 | . . . 2 . Melee 1 | . . . . 1 Uniques/NPCs Destroyed . | . . . . . Combat | -11 -10 -10 -7 -5 -------- Run | Yrd Mat Sub Scr Fac Hostile Shots Fired 278 | . 4 . 74 200 Missed 85 | . 2 . 26 57 Hits 193 | . 2 . 48 143 Melee 6 | . . . . 6 Projectile 187 | . 2 . 48 137 Critical Strikes 10 | . . . 7 3 Part Disruptions 1 | . . . . 1 Damage Taken 3394 | . 28 38 789 2539 Core 1182 | . 8 . 162 1012 Absorbed by Shields . | . . . . . Ignored by Resistances 10 | . . . 10 . Core Remaining (%) 66 | 100 . . 32 . Volleys Fired 92 | . 5 . 27 60 Largest 3 | . 1 . 2 3 Hottest 170 | . 20 . 58 170 Shots Fired 141 | . 5 . 35 101 Gun 92 | . 5 . 19 68 Cannon 33 | . . . . 33 Launcher 14 | . . . 14 . Special 2 | . . . 2 . Kinetic 92 | . 5 . 19 68 Thermal 33 | . . . . 33 Explosive 14 | . . . 14 . Electromagnetic . | . . . . . Robot Hit Streak 9 | . 2 . 6 9 Robot Miss Streak 7 | . 2 . 3 7 Penetration Max 1 | . . . . 1 Secondary Targets 1 | . . . . 1 Max Gunslinging Chain 1 | . . . . 1 Shots Hit Robots 96 | . 2 . 19 75 Core Hits 50 | . 1 . 14 35 Critical Kills 1 | . . . . 1 Critical Parts Destroyed 1 | . . . . 1 Critical Strikes 6 | . . . . 6 Destroy 2 | . . . . 2 Blast 1 | . . . . 1 Impale 3 | . . . . 3 Melee Attacks 17 | . . . . 17 Impact . | . . . . . Slashing . | . . . . . Piercing 17 | . . . . 17 Sneak Attacks 1 | . . . . 1 Combat Hostiles . | . . . . . Follow-up Attacks . | . . . . . Damage Inflicted 2944 | . 32 . 780 2132 Guns 945 | . 32 . 139 774 Cannons 736 | . . . . 736 Explosions 641 | . . . 641 . Melee 620 | . . . . 620 Ramming 2 | . . . . 2 Kinetic 913 | . 32 . 139 742 Thermal 768 | . . . . 768 Explosive 641 | . . . 641 . Electromagnetic . | . . . . . Impact . | . . . . . Slashing . | . . . . . Piercing 620 | . . . . 620 Highest Corruption 6 | . 1 1 1 6 Average Corruption 2 | . 1 1 1 5 Corruption Purged . | . . . . . Corruption Blocked . | . . . . . Effects 24 | . 3 1 2 18 Message Errors 4 | . . . 1 3 Matter Fused 7 | . 1 . 1 5 Heat Flow Errors 2 | . . . . 2 Energy Discharges 4 | . . 1 . 3 Parts Rejected 1 | . . . . 1 Data Loss (minor) 3 | . . . . 3 Data Loss (major) 3 | . 2 . . 1 Overload Shots . | . . . . . Overflow Damage 118 | . . . 47 71 Projectiles 31 | . . . . 31 Explosions 47 | . . . 47 . Melee 40 | . . . . 40 Knockbacks 1 | . . . . 1 Impact . | . . . . . Kinetic 1 | . . . . 1 Secondary . | . . . . . Self-Inflicted Damage 16 | . . . 15 1 Shots 3 | . . . 3 . Rammed 3 | . . . . 3 Targets Rammed 3 | . . . . 3 Kicked . | . . . . . Crushed . | . . . . . Highest Temperature 240 | . . . 208 240 Average Temperature 78 | . . . 82 63 Received Heat Transfer 954 | . 6 . 552 396 Siege Activations . | . . . . . Martial Activations . | . . . . . Shielding Activations . | . . . . . Robots Disrupted . | . . . . . Combat Hostiles . | . . . . . Robots Corrupted . | . . . . . Combat Hostiles . | . . . . . Parts Fried . | . . . . . Impact Corruptions . | . . . . . Robots Melted . | . . . . . Combat Hostiles . | . . . . . Parts Melted 3 | . . . 1 2 Heat Transferred 991 | . . . . 991 Parts Sabotaged . | . . . . . Parts Stolen . | . . . . . Parts Stripped . | . . . . . Power Chain Reactions . | . . . . . Alert | -11 -10 -10 -7 -5 ------- Run | Yrd Mat Sub Scr Fac Maximum Alert Level . | . . . . . Low Security (%) 100 | 100 100 . . 100 Level 1 . | . . . . . Level 2 . | . . . . . Level 3 . | . . . . . Level 4 . | . . . . . Level 5 . | . . . . . High Security . | . . . . . Max Security . | . . . . . Peak Influence 159 | . 5 . . 159 Initial . | . . . . . Average 56 | . . . . 76 Influence Increases 639 | . 5 . . 634 Destroy 0b10 Robot/C 340 | . . . . 340 Destroy 0b10 Robot/NC 30 | . 5 . . 25 Destroy Leader 70 | . . . . 70 Disable Machine 30 | . . . . 30 Destroy Structure 34 | . . . . 34 Partial Spotted 15 | . . . . 15 Lose Combat Pursuer 120 | . . . . 120 Influence Decreases 492 | . 5 . . 487 Time Decay 342 | . 5 . . 337 Lost Part 150 | . . . . 150 Squads Dispatched 7 | . . . . 7 Investigation 1 | . . . . 1 Extermination 2 | . . . . 2 Reinforcement 1 | . . . . 1 Assault . | . . . . . Garrison 3 | . . . . 3 Intercept . | . . . . . Searches Triggered . | . . . . . Construction Impeded 1 | . . . . 1 Haulers Reinforced . | . . . . . Active Scanning Responses . | . . . . . Cargo Convoy Interrupts . | . . . . . Stealth | -11 -10 -10 -7 -5 --------- Run | Yrd Mat Sub Scr Fac Distress Signals 2 | . 1 . . 1 Communications Jammed . | . . . . . Distress Signals . | . . . . . Times Spotted 58 | . 8 . 22 28 Peak Tracking Total 6 | . 6 . 6 5 Tactical Retreats 6 | . . . 2 4 Traps | -11 -10 -10 -7 -5 ------- Run | Yrd Mat Sub Scr Fac Traps Triggered 1 | . 1 . . . Indirectly . | . . . . . Trap Hack Attempts . | . . . . . Triggered . | . . . . . Disarmed . | . . . . . Reprogrammed . | . . . . . Reused . | . . . . . Traps Extracted . | . . . . . Installed . | . . . . . Triggered . | . . . . . Machines | -11 -10 -10 -7 -5 ---------- Run | Yrd Mat Sub Scr Fac Machines Disabled 12 | . . . 10 2 Max in Single Turn 5 | . . . 5 2 Machines Repaired . | . . . . . Machines Dismantled . | . . . . . Machines Sabotaged . | . . . . . Overloaded Fab Kills . | . . . . . Hacking | -11 -10 -10 -7 -5 --------- Run | Yrd Mat Sub Scr Fac Machines Accessed 3 | . . . 1 2 Terminals . | . . . . . Fabricators 1 | . . . . 1 Repair Stations . | . . . . . Recycling Units 1 | . . . . 1 Scanalyzers . | . . . . . Garrison Access . | . . . . . Total Hacks 4 | . . . 1 3 Successful 1 | . . . 1 . Failed 3 | . . . . 3 Catastrophic 1 | . . . . 1 Database Lockouts . | . . . . . Manual 2 | . . . . 2 Terminals . | . . . . . Fabricators 1 | . . . . 1 Repair Stations . | . . . . . Recycling Units 2 | . . . . 2 Scanalyzers . | . . . . . Garrison Access . | . . . . . Terminal Hacks 1 | . . . 1 . Proto ID Catalog 1 | . . . 1 . Fabricator Hacks . | . . . . . Repair Station Hacks . | . . . . . Recycling Unit Hacks . | . . . . . Scanalyzer . | . . . . . Garrison Access Hacks . | . . . . . Unauthorized Hacks . | . . . . . Terminals . | . . . . . Fabricators . | . . . . . Repair Stations . | . . . . . Recycling Units . | . . . . . Scanalyzers . | . . . . . Garrison Access . | . . . . . Data Cores Recovered . | . . . . . Used . | . . . . . Hacking Detections 2 | . . . . 2 Full Trace Events 1 | . . . . 1 Feedback Events . | . . . . . Feedback Blocked . | . . . . . Robot Schematics Acquired . | . . . . . Robots Built . | . . . . . Authchips . | . . . . . Time . | . . . . . Total Robot Build Rating . | . . . . . Part Schematics Acquired . | . . . . . Parts Built . | . . . . . Authchips . | . . . . . Time . | . . . . . Total Part Build Rating . | . . . . . Part Studies Acquired . | . . . . . Parts Repaired . | . . . . . Time . | . . . . . Parts Recycled . | . . . . . Recycled Matter . | . . . . . Retrieved Matter . | . . . . . Retrieved Components . | . . . . . Parts Scanalyzed . | . . . . . Part Schematics Acquired . | . . . . . Parts Damaged . | . . . . . Bothacking | -11 -10 -10 -7 -5 ------------ Run | Yrd Mat Sub Scr Fac Used RIF Installer . | . . . . . Robots Hacked . | . . . . . Non-combat . | . . . . . Combat . | . . . . . Robot Hacks Applied . | . . . . . Relay Couplers Released . | . . . . . Fabnet Peak Effective % . | . . . . . Robots Rewired . | . . . . . Allies Hacked . | . . . . . Hacks Repelled . | . . . . . Allies | -11 -10 -10 -7 -5 -------- Run | Yrd Mat Sub Scr Fac Total Allies . | . . . . . Largest Group . | . . . . . Highest-Rated Group . | . . . . . Highest-Rated Ally . | . . . . . Total Orders . | . . . . . Ally Attacks . | . . . . . Total Damage . | . . . . . Kills . | . . . . . Allies Corrupted . | . . . . . Allies Melted 5 | . . . 5 . Intel | -11 -10 -10 -7 -5 ------- Run | Yrd Mat Sub Scr Fac Active Infowar (turns) . | . . . . . Robot Analysis Total . | . . . . . Derelict Logs Recovered 1 | . . 1 . . Drone Launches . | . . . . . Drone Recoveries . | . . . . . Exploration | -11 -10 -10 -7 -5 ------------- Run | Yrd Mat Sub Scr Fac Turns Passed 3482 | 47 287 194 2004 950 Spaces Moved 2082 | 41 210 134 1201 496 Core 174 | 17 . . . 157 Treads . | . . . . . Legs 1830 | 24 210 134 1201 261 Wheels . | . . . . . Hover . | . . . . . Flight 78 | . . . . 78 Fastest Speed 32 | 50 120 120 110 32 Average Speed 124 | 90 120 120 122 134 Slowest Speed 650 | 120 120 120 270 650 Overloaded Moves . | . . . . . Propulsion Burnouts . | . . . . . Robots Hopped 4 | . . . . 4 Potential Cave-ins . | . . . . . Cave-ins Triggered . | . . . . . Exploration Rate (%) 32 | 3 46 14 86 13 Regions Visited 4 Branch Regions 2 Pre-discovered Areas . | . . . . . Known Exits Taken 1 | . . . 1 . Unknown Exits Taken 3 | 1 1 1 . . Scrap Searched 8 | . . 2 6 . Spaces Dug 3 | . . . . 3 Terrain Destroyed 130 | . . . 115 15 Melee . | . . . . . Projectile 14 | . . . . 14 AOE 115 | . . . 115 . Terrain Rammed . | . . . . . Walls Destroyed . | . . . . . Machines Disabled . | . . . . . Actions | -11 -10 -10 -7 -5 --------- Run | Yrd Mat Sub Scr Fac Total 2813 | 50 240 167 1704 652 Wait 534 | . 23 34 435 42 Move 2070 | 40 209 133 1200 488 Hop 4 | . . . . 4 Pick Up 20 | 5 2 . 13 . Fast Attach 29 | . . . 6 23 Attach 14 | 5 1 . 7 1 Detach 7 | . . . 3 4 Swap 5 | . . . 4 1 Drop 18 | . . . 9 9 Fire 92 | . 5 . 27 60 Melee 17 | . . . . 17 Ram 3 | . . . . 3 Kick . | . . . . . Crush . | . . . . . Escape Stasis . | . . . . . Rewire . | . . . . . Trap . | . . . . . Miscellaneous . | . . . . . Route ------- -11/Scrapyard -10/Materials (discovered 3 exits: [*Mat] / [*Min] / [*Sub]) -10/Subcaves -7/Scraptown (discovered 2 exits: *Fac x2) -5/Factory History --------- Turn | Location | Event 7 | -11/Scrapyard | Discovered new exit (range 14) 48 | -11/Scrapyard | Entered Materials 49 | -10/Materials | Met a group of wandering Federalists 138 | -10/Materials | Discovered new exit (range 14) 258 | -10/Materials | Discovered new exit (range 10) 270 | -10/Materials | Discovered new exit (range 16) 311 | -10/Materials | Build established: Mutant 335 | -10/Materials | Entered Subcaves 336 | -10/Subcaves | Continued accompanying wandering Federalists (4) 336 | -10/Subcaves | Approached by a straggling Scientist 337 | -10/Subcaves | Learned location of 1 exit from Materials 528 | -10/Subcaves | Visited 4L-MR0's lab 529 | -10/Subcaves | Wandering Federalist uncovered a shortcut to Scraptown 529 | -10/Subcaves | Entered Scraptown 529 | -7/Scraptown | System corruption cleaned by C-Scrubber 923 | -7/Scraptown | Visited Shadow of the Wyrm 955 | -7/Scraptown | Visited Cyclists 994 | -7/Scraptown | Visited Red Mages 1017 | -7/Scraptown | Found Relay Coupler [Proto] 1040 | -7/Scraptown | Visited Symbiants 1074 | -7/Scraptown | Visited UFD Registry 1074 | -7/Scraptown | Registered with UFD as "Bulletchassis" 1109 | -7/Scraptown | Visited Artisan Demo Area 1126 | -7/Scraptown | Visited Awakened 1146 | -7/Scraptown | Visited Scrapoid Research Area 1210 | -7/Scraptown | Visited Scrap Suit Storage 1228 | -7/Scraptown | Visited Science Guys 1266 | -7/Scraptown | Visited Supply Room 1291 | -7/Scraptown | Visited Research Penetration Think Tank 1312 | -7/Scraptown | Visited Science Testing Area 1332 | -7/Scraptown | Visited Curators Association 1374 | -7/Scraptown | Visited Derelict Rescue Squad 1393 | -7/Scraptown | Visited DA-N13 Charitable Foundation 1406 | -7/Scraptown | Found DCF Scrap (29 items) 1457 | -7/Scraptown | Visited LU-1G1's Boring Crew 1770 | -7/Scraptown | Met Optimus 1770 | -7/Scraptown | Accepted into 0bPrime 1831 | -7/Scraptown | Build established: Derelict-Mutant 2170 | -7/Scraptown | Civil war broke out across Scraptown 2191 | -7/Scraptown | Attached CPS modules to 9F-UA8(j). 2230 | -7/Scraptown | Lost 7 allies 2268 | -7/Scraptown | Identified exit to Factory 2286 | -7/Scraptown | Lost 4 allies 2301 | -7/Scraptown | Attached CPS modules to Autobeam Turret. 2331 | -7/Scraptown | Found Siege Cannon Replica 2377 | -7/Scraptown | Lost 5 allies 2411 | -7/Scraptown | Core integrity fell below 50% 2470 | -7/Scraptown | Lost 5 allies 2516 | -7/Scraptown | Optimus destroyed in the chaos of civil war 2518 | -7/Scraptown | Build established: Mutant 2533 | -7/Scraptown | Entered Factory 2533 | -5/Factory | Evolved 10 slots: Power x1, Propulsion x2, Utility x5, Weapon x2 3039 | -5/Factory | Lost 4 parts (1n1u2w) 3139 | -5/Factory | Core integrity fell below 50% 3176 | -5/Factory | Lost 4 parts (1p1u2w) 3207 | -5/Factory | Garrison activated, responded to threat 3266 | -5/Factory | Lost 3 parts (2n1u) 3322 | -5/Factory | Core integrity fell below 20% 3483 | -5/Factory | Destroyed by P-70 Sage with High-powered Shock Rifle Last Messages --------------- ALERT: Potential suspicious activity detected, Programmers report to Factory Zone 9A. W-25 Informer sends out distress signal. System corrupted: Component data lost. G-50 Soldier suffers critical hit (Impale). Destroyed Hvy. Laser. System corrupted: Energy discharge (-40). Destroyed Imp. Hover Unit. Assembly Bed disabled. Slug penetrates Wall. System corrupted: Heat flow error (+128). Y-64 Sentinel suffers critical hit (Impale). Penetrated by Slug. Lgt. Angular Momentum Engine destroyed. Slug penetrates Assembly Bed. Penetrated by Slug. Imp. Remote Datajack destroyed. Penetrated by Slug. Y-64 Sentinel suffers critical hit (Impale). Y-64 Sentinel destroyed. Map ----- +----------------------------------------------------+ | ?????????????????????############+#### """"" """" | | ????????????????????????????# """"" """" | | ????????????????????????????# | | ????????????????????????????# !!! "" | | ????????????????????????????# !!! """" | | ????????????????????????????# !!! """" | | ????????????????????????????# | | ????????????????????????????# | | ????????????????????????????# # | | ????????????????????????????# # | | ???????????????????????????## # | | ???????????????????????????# ##### # | | ???????????????????????????#T #???# # | | ???????????????????????????## #???# # | | ????????????????????????????# #???#### # | | ??????????# ###+#####?##### #??????# # | | ????????????? #??????# # | | ???????????????## ########/#########?# # | | ???????????????#" # = #?# # | | ????????????????# + #?# # | | ????????????????######### " """" """ #?# # | | ????????????????????????# """" """" """ #?# # | | ????????????????????????# """" """" """ #?? | | ????????????????????????# """" """" ????####?? | | ????????????????????????#!"""" """" ?????????? | | ????????????????????????#@" "" """" ?????????? | | ????????????????????????#[p #???????? | | ????????????????????????############?????????????? | | | | | | | | | | | | | | | | | | | | | | | | | | | | | | | | | | | | | | | | | | | | | +----------------------------------------------------+ Best States ------------- Heat Dissipation 85 Energy Generation 18 Energy Capacity 300 Matter Stores 300 Matter Capacity 300 Sight Range 16 Terrain Scan Density 10 Armor Coverage 150 Resistance: KI 20 Evasion (%) 63 Item Schematics ----------------- None Robot Schematics ------------------ None Fabricated ------------ Nothing Repaired ---------- Nothing Studied --------- None Alien Tech Used ----------------- None Achievements -------------- Uncivil War Challenges ------------ None Game ------ Seed IonMomentumNanosword Manual? 0 Play Time 00:33:15 Cumulative 240.2 hours Start 2026.02.16 @ 10:38:08 End 2026.02.16 @ 11:07:28 Sessions 1 Manual Loads 0 Difficulty Rogue Special Mode None Game No. 657 Rogue 656 Adventurer 1 Explorer 0 Win Type - Total 0 Types 0/0/0/0/0/0/0/0/0/0 Lore% 65 Gallery% 61 Achievement% 41 Wizard Run 0 Options --------- Layout 1 ASCII 0 Keyboard 0 Movement Mouse Keybinds 0 Fullscreen 1 Font 24/Smallcaps Map View 50x35 Zoom Use 0% Tactical HUD 0 Map Filters NONE Filters NONE Steam 1 RUN: 05756d5c-db4f-410d-aae3-d27208975511